fUSD/lending_fUSD_20240814
["ID","MTS","AMOUNT","RATE_DAILY","PERIOD"]
[334811333,1723603834186,-500.0,0.00013698,2]
[334811334,1723603834196,-500.0,0.00013698,2]
[334811335,1723603834205,-500.0,0.00013698,2]
[334811336,1723603834215,-500.0,0.00013698,2]
[334811337,1723603834224,-500.0,0.00013698,2]
[334811338,1723603834233,-500.0,0.00013698,2]
[334811339,1723603834242,-500.0,0.00013698,2]
[334811340,1723603834252,-500.0,0.00013698,2]
[334811341,1723603834262,-501.65782363,0.00013698,2]
[334811342,1723603834272,-500.0,0.00013698,2]
[334811343,1723603834282,-500.0,0.00013698,2]
[334811344,1723603834292,-500.0,0.00013698,2]
[334811345,1723603834301,-515.84,0.00013698,2]
[334811346,1723603834311,-500.0,0.00013698,2]
[334811347,1723603834321,-500.0,0.00013698,2]
[334811348,1723603834332,-500.0,0.00013698,2]
[334811349,1723603834341,-500.0,0.00013698,2]
[334811350,1723603834351,-500.0,0.00013698,2]
[334811351,1723603834361,-500.0,0.00013698,2]
[334811352,1723603834371,-500.0,0.00013698,2]
[334811353,1723603834380,-500.0,0.00013698,2]
[334811354,1723603834390,-788.88,0.00013698,2]
[334811355,1723603834399,-456.23317444,0.00013698,2]
[334811356,1723603834428,-43.76682556,0.00013698,2]
[334811357,1723603834437,-500.0,0.00013698,2]
[334811358,1723603834447,-500.0,0.00013698,2]
[334811359,1723603834456,-500.0,0.00013698,2]
[334811360,1723603834466,-500.0,0.00013698,2]
[334811361,1723603834476,-540.27,0.00013698,2]
[334811362,1723603834485,-500.0,0.00013698,2]
[334811363,1723603834495,-500.0,0.00013698,2]
[334811364,1723603834505,-500.0,0.00013698,2]
[334811365,1723603834514,-500.0,0.00013698,2]
[334811366,1723603834523,-500.0,0.00013698,2]
[334811367,1723603834533,-500.0,0.00013698,2]
[334811368,1723603834771,-500.0,0.00013698,2]
[334811369,1723603834821,-539.27,0.00013698,2]
[334811370,1723603834830,-500.0,0.00013698,2]
[334811371,1723603834840,-500.0,0.00013698,2]
[334811372,1723603834849,-556.85,0.00013698,2]
[334811373,1723603834858,-500.0,0.00013698,2]
[334811374,1723603834867,-500.0,0.00013698,2]
[334811375,1723603834877,-510.55,0.00013698,2]
[334811376,1723603834886,-500.0,0.00013698,2]
[334811377,1723603834895,-1083.16141998,0.00013698,2]
[334811378,1723603834908,-745.82858002,0.00013698,2]
[334811379,1723603834917,-500.0,0.00013698,2]
[334811380,1723603834927,-500.0,0.00013698,2]
[334811381,1723603834936,-248.39060747,0.00013698,2]
[334811382,1723603834949,-521.14,0.00013698,2]
[334811383,1723603834958,-500.0,0.00013698,2]
[334811384,1723603834967,-500.0,0.00013698,2]
[334811385,1723603834976,-500.0,0.00013698,2]
[334811386,1723603834986,-457.74293697,0.00013698,2]
[334811387,1723603835061,-42.25706303,0.00013698,2]
[334811388,1723603835070,-615.98006681,0.00013698,2]
[334811389,1723603835082,-264.63989011,0.00013698,2]
[334811390,1723603835093,-3.77004308,0.00013698,2]
[334811391,1723603835102,-500.0,0.00013698,2]
[334811392,1723603835113,-95.689957,0.00013698,2]
[334811393,1723603835124,-404.310043,0.00013698,2]
[334811394,1723603835133,-364.53152374,0.00013698,2]
[334811395,1723603835142,-300.17814901,0.00013698,2]
[334811396,1723603835151,-500.0,0.00013698,2]
[334811397,1723603835160,-500.0,0.00013698,2]
[334811398,1723603835169,-500.0,0.00013698,2]
[334811399,1723603835178,-500.0,0.00013698,2]
[334811400,1723603835187,-500.0,0.00013698,2]
[334811401,1723603835196,-500.0,0.00013698,2]
[334811402,1723603835205,-788.86,0.00013698,2]
[334811403,1723603835215,-500.0,0.00013698,2]
[334811404,1723603835224,-500.0,0.00013698,2]
[334811405,1723603835233,-500.0,0.00013698,2]
[334811406,1723603835242,-500.0,0.00013698,2]
[334811407,1723603835251,-500.0,0.00013698,2]
[334811408,1723603835261,-500.0,0.00013698,2]
[334811409,1723603835270,-500.0,0.00013698,2]
[334811410,1723603835280,-500.0,0.00013698,2]
[334811411,1723603835289,-570.12,0.00013698,2]
[334811412,1723603835298,-710.6,0.00013698,2]
[334811413,1723603835308,-500.0,0.00013698,2]
[334811414,1723603835318,-500.0,0.00013698,2]
[334811415,1723603835327,-743.97,0.00013698,2]
[334811416,1723603835338,-500.0,0.00013698,2]
[334811417,1723603835347,-500.0,0.00013698,2]
[334811418,1723603835356,-500.0,0.00013698,2]
[334811419,1723603835365,-767.65,0.00013698,2]
[334811420,1723603835375,-500.0,0.00013698,2]
[334811421,1723603835385,-500.0,0.00013698,2]
[334811422,1723603835395,-550.4,0.00013698,2]
[334811423,1723603835405,-500.0,0.00013698,2]
[334811424,1723603835414,-500.0,0.00013698,2]
[334811425,1723603835424,-500.0,0.00013698,2]
[334811426,1723603835433,-500.0,0.00013698,2]
[334811427,1723603835443,-306.89759224,0.00013698,2]
[334811428,1723603835458,-193.10240776,0.00013698,2]
[334811429,1723603835467,-500.0,0.00013698,2]
[334811430,1723603835477,-500.0,0.00013698,2]
[334811431,1723603835486,-399.36511514,0.00013698,2]
[334811432,1723603835495,-500.0,0.00013698,2]
[334811433,1723603835505,-500.0,0.00013698,2]
[334811434,1723603835514,-500.0,0.00013698,2]
[334811435,1723603835523,-1176.84,0.00013698,2]
[334811436,1723603835533,-500.0,0.00013698,2]
[334811437,1723603835542,-593.23,0.00013698,2]
[334811438,1723603835552,-500.0,0.00013698,2]
[334811439,1723603835561,-60.70226583,0.00013698,2]
[334811440,1723603835573,-439.29773417,0.00013698,2]
[334811441,1723603835584,-281.27667296,0.00013698,2]
[334811442,1723603835596,-218.72332704,0.00013698,2]
[334811443,1723603835605,-231.78637201,0.00013698,2]
[334811444,1723603835617,-268.21362799,0.00013698,2]
[334811445,1723603835626,-500.0,0.00013698,2]
[334811446,1723603835635,-501.82297899,0.00013698,2]
[334811447,1723603835644,-500.0,0.00013698,2]
[334811448,1723603835653,-500.0,0.00013698,2]
[334811449,1723603835662,-212.71405891,0.00013698,2]
[334811450,1723603835674,-287.28594109,0.00013698,2]
[334811451,1723603835683,-500.0,0.00013698,2]
[334811452,1723603835692,-500.0,0.00013698,2]
[334811453,1723603835702,-500.0,0.00013698,2]
[334811454,1723603835711,-500.0,0.00013698,2]
[334811455,1723603835720,-738.22805891,0.00013698,2]
[334811458,1723603838687,-907.61194109,0.00013698,2]
[334811459,1723603838698,-334.06643927,0.00013698,2]
[334811460,1723603838709,-165.93356073,0.00013698,2]
[334811461,1723603838719,-500.0,0.00013698,2]
[334811462,1723603838728,-519.49879497,0.00013698,2]
[334811463,1723603838738,-500.0,0.00013698,2]
[334811464,1723603838748,-500.0,0.00013698,2]
[334811465,1723603838757,-501.21542859,0.00013698,2]
[334811466,1723603838767,-500.0,0.00013698,2]
[334811467,1723603838776,-500.0,0.00013698,2]
[334811468,1723603838786,-500.0,0.00013698,2]
[334811469,1723603838796,-527.39,0.00013698,2]
[334811470,1723603838806,-500.0,0.00013698,2]
[334811471,1723603838815,-500.0,0.00013698,2]
[334811472,1723603838825,-500.0,0.00013698,2]
[334811473,1723603838835,-500.0,0.00013698,2]
[334811474,1723603838845,-150.0,0.00013698,2]
[334811475,1723603838855,-679.23,0.00013698,2]
[334811476,1723603838865,-53.46902013,0.00013698,2]
[334811477,1723603838878,-446.53097987,0.00013698,2]
[334811478,1723603838888,-500.0,0.00013698,2]
[334811479,1723603838897,-377.68614368,0.00013698,2]
[334811480,1723603838907,-500.0,0.00013698,2]
[334811481,1723603838918,-500.0,0.00013698,2]
[334811482,1723603838927,-500.0,0.00013698,2]
[334811483,1723603838940,-500.0,0.00013698,2]
[334811484,1723603838950,-500.0,0.00013698,2]
[334811485,1723603838959,-500.0,0.00013698,2]
[334811486,1723603838968,-1488.54,0.00013698,2]
[334811487,1723603838978,-500.0,0.00013698,2]
[334811488,1723603838989,-500.0,0.00013698,2]
[334811489,1723603838998,-500.0,0.00013698,2]
[334811490,1723603839008,-500.0,0.00013698,2]
[334811491,1723603839018,-500.0,0.00013698,2]
[334811492,1723603839028,-500.0,0.00013698,2]
[334811493,1723603839038,-500.0,0.00013698,2]
[334811494,1723603839047,-500.0,0.00013698,2]
[334811495,1723603839057,-625.85,0.00013698,2]
[334811496,1723603839066,-500.0,0.00013698,2]
[334811497,1723603839076,-500.0,0.00013698,2]
[334811498,1723603839086,-500.0,0.00013698,2]
[334811499,1723603839095,-278.04579877,0.00013698,2]
[334811500,1723603839105,-500.0,0.00013698,2]
[334811501,1723603839114,-500.0,0.00013698,2]
[334811502,1723603839123,-500.0,0.00013698,2]
[334811503,1723603839133,-500.0,0.00013698,2]
[334811504,1723603839143,-500.0,0.00013698,2]
[334811505,1723603839152,-500.0,0.00013698,2]
[334811506,1723603839162,-290.99037229,0.00013698,2]
[334811507,1723603839172,-500.0,0.00013698,2]
[334811508,1723603839181,-3037.22,0.00013698,2]
[334811509,1723603839190,-500.0,0.00013698,2]
[334811510,1723603839200,-300.0,0.00013698,2]
[334811511,1723603839209,-500.0,0.00013698,2]
[334811512,1723603839219,-500.0,0.00013698,2]
[334811513,1723603839229,-500.0,0.00013698,2]
[334811514,1723603839239,-500.0,0.00013698,2]
[334811515,1723603839250,-1050.9,0.00013698,2]
[334811516,1723603839259,-500.0,0.00013698,2]
[334811517,1723603839270,-500.0,0.00013698,2]
[334811518,1723603839279,-500.0,0.00013698,2]
[334811519,1723603839289,-500.0,0.00013698,2]
[334811520,1723603839299,-500.0,0.00013698,2]
[334811521,1723603839309,-500.0,0.00013698,2]
[334811522,1723603839318,-500.0,0.00013698,2]
[334811523,1723603839328,-500.0,0.00013698,2]
[334811524,1723603839338,-500.0,0.00013698,2]
[334811525,1723603839347,-500.0,0.00013698,2]
[334811526,1723603839357,-500.0,0.00013698,2]
[334811527,1723603839367,-500.0,0.00013698,2]
[334811528,1723603839376,-500.0,0.00013698,2]
[334811529,1723603839387,-500.0,0.00013698,2]
[334811530,1723603839396,-500.0,0.00013698,2]
[334811531,1723603839406,-500.0,0.00013698,2]
[334811532,1723603839415,-500.0,0.00013698,2]
[334811533,1723603839425,-500.0,0.00013698,2]
[334811534,1723603839434,-500.0,0.00013698,2]
[334811535,1723603839444,-500.0,0.00013698,2]
[334811536,1723603839453,-500.0,0.00013698,2]
[334811537,1723603839463,-500.0,0.00013698,2]
[334811538,1723603839472,-500.0,0.00013698,2]
[334811539,1723603839482,-898.04,0.00013698,2]
[334811540,1723603839492,-500.0,0.00013698,2]
[334811541,1723603839502,-1015.12,0.00013698,2]
[334811542,1723603839512,-500.0,0.00013698,2]
[334811543,1723603839522,-500.0,0.00013698,2]
[334811544,1723603839532,-677.19,0.00013698,2]
[334811545,1723603839542,-446.08883194,0.00013698,2]
[334811546,1723603839552,-3125.45,0.00013698,2]
[334811547,1723603839561,-2121.22,0.00013698,2]
[334811548,1723603839571,-500.0,0.00013698,2]
[334811549,1723603839582,-500.0,0.00013698,2]
[334811550,1723603839592,-935.8,0.00013698,2]
[334811551,1723603839601,-500.0,0.00013698,2]
[334811552,1723603839611,-500.0,0.00013698,2]
[334811553,1723603839620,-2706.39,0.00013698,2]
[334811554,1723603839630,-500.0,0.00013698,2]
[334811555,1723603839639,-500.0,0.00013698,2]
[334811556,1723603839649,-500.0,0.00013698,2]
[334811557,1723603839659,-500.0,0.00013698,2]
[334811558,1723603839668,-500.0,0.00013698,2]
[334811559,1723603839678,-500.0,0.00013698,2]
[334811560,1723603839688,-4210.94,0.00013698,2]
[334811561,1723603839698,-500.0,0.00013698,2]
[334811562,1723603839707,-4601.07,0.00013698,2]
[334811563,1723603839717,-1228.41,0.00013698,2]
[334811564,1723603839726,-500.0,0.00013698,2]
[334811565,1723603839735,-919.64,0.00013698,2]
[334811566,1723603839745,-951.16,0.00013698,2]
[334811567,1723603839754,-500.0,0.00013698,2]
[334811568,1723603839764,-500.0,0.00013698,2]
[334811569,1723603839773,-500.0,0.00013698,2]
[334811570,1723603839782,-500.0,0.00013698,2]
[334811571,1723603839792,-584.56,0.00013698,2]
[334811572,1723603839802,-1794.95,0.00013698,2]
[334811573,1723603839811,-500.0,0.00013698,2]
[334811574,1723603839821,-3321.93,0.00013698,2]
[334811575,1723603839832,-1422.69,0.00013698,2]
[334811576,1723603839842,-500.0,0.00013698,2]
[334811577,1723603839852,-2496.28,0.00013698,2]
[334811578,1723603839862,-500.0,0.00013698,2]
[334811579,1723603839872,-1937.4,0.00013698,2]
[334811580,1723603839881,-195.35549452,0.00013698,2]
[334811581,1723603839891,-500.0,0.00013698,2]
[334811582,1723603839900,-500.0,0.00013698,2]
[334811583,1723603839910,-500.0,0.00013698,2]
[334811584,1723603839919,-500.0,0.00013698,2]
[334811585,1723603839929,-702.18,0.00013698,2]
[334811586,1723603839941,-500.0,0.00013698,2]
[334811587,1723603839950,-500.0,0.00013698,2]
[334811588,1723603839960,-525.91,0.00013698,2]
[334811589,1723603839969,-720.77,0.00013698,2]
[334811590,1723603839978,-500.0,0.00013698,2]
[334811591,1723603839988,-503.52050002,0.00013698,2]
[334811592,1723603839998,-500.0,0.00013698,2]
[334811593,1723603840007,-2973.74,0.00013698,2]
[334811594,1723603840018,-657.62,0.00013698,2]
[334811595,1723603840027,-2208.41,0.00013698,2]
[334811596,1723603840037,-2020.58,0.00013698,2]
[334811597,1723603840046,-500.0,0.00013698,2]
[334811598,1723603840055,-500.0,0.00013698,2]
[334811599,1723603840064,-956.36,0.00013698,2]
[334811600,1723603840074,-500.0,0.00013698,2]
[334811601,1723603840083,-500.0,0.00013698,2]
[334811602,1723603840093,-500.0,0.00013698,2]
[334811603,1723603840102,-500.0,0.00013698,2]
[334811604,1723603840111,-389.14579823,0.00013698,2]
[334811605,1723603840121,-500.0,0.00013698,2]
[334811606,1723603840130,-830.48,0.00013698,2]
[334811607,1723603840139,-908.14,0.00013698,2]
[334811608,1723603840148,-500.0,0.00013698,2]
[334811609,1723603840158,-1531.76,0.00013698,2]
[334811610,1723603840167,-445.76827398,0.00013698,2]
[334811611,1723603840176,-806.72,0.00013698,2]
[334811612,1723603840186,-390.91544023,0.00013698,2]
[334811613,1723603840195,-500.0,0.00013698,2]
[334811614,1723603840204,-500.0,0.00013698,2]
[334811615,1723603840215,-500.0,0.00013698,2]
[334811616,1723603840224,-1233.68,0.00013698,2]
[334811617,1723603840233,-881.49,0.00013698,2]
[334811618,1723603840242,-3549.23,0.00013698,2]
[334811619,1723603840252,-506.83,0.00013698,2]
[334811620,1723603840261,-500.0,0.00013698,2]
[334811621,1723603840271,-1686.3,0.00013698,2]
[334811622,1723603840281,-1104.64,0.00013698,2]
[334811623,1723603840290,-500.0,0.00013698,2]
[334811624,1723603840299,-500.0,0.00013698,2]
[334811626,1723603840309,-959.01,0.00013698,2]
[334811627,1723603840318,-500.0,0.00013698,2]
[334811629,1723603840327,-3432.32,0.00013698,2]
[334811630,1723603840338,-3444.79,0.00013698,2]
[334811631,1723603840347,-500.0,0.00013698,2]
[334811632,1723603840357,-500.0,0.00013698,2]
[334811633,1723603840366,-500.0,0.00013698,2]
[334811634,1723603840375,-1279.57,0.00013698,2]
[334811635,1723603840385,-500.0,0.00013698,2]
[334811637,1723603840395,-644.3,0.00013698,2]
[334811639,1723603840404,-500.0,0.00013698,2]
[334811640,1723603840414,-500.0,0.00013698,2]
[334811641,1723603840423,-500.0,0.00013698,2]
[334811642,1723603840433,-500.0,0.00013698,2]
[334811643,1723603840443,-526.04,0.00013698,2]
[334811644,1723603840453,-500.0,0.00013698,2]
[334811645,1723603840463,-604.27,0.00013698,2]
[334811646,1723603840472,-1106.38,0.00013698,2]
[334811647,1723603840482,-500.0,0.00013698,2]
[334811648,1723603840492,-1190.65,0.00013698,2]
[334811649,1723603840502,-500.0,0.00013698,2]
[334811650,1723603840512,-1152.6,0.00013698,2]
[334811651,1723603840522,-500.0,0.00013698,2]
[334811652,1723603840532,-500.0,0.00013698,2]
[334811653,1723603840542,-500.0,0.00013698,2]
[334811654,1723603840551,-621.41,0.00013698,2]
[334811655,1723603840561,-500.0,0.00013698,2]
[334811656,1723603840570,-500.0,0.00013698,2]
[334811657,1723603840579,-500.0,0.00013698,2]
[334811658,1723603840590,-3396.28,0.00013698,2]
[334811659,1723603840599,-891.26,0.00013698,2]
[334811660,1723603840608,-500.0,0.00013698,2]
[334811661,1723603840618,-500.0,0.00013698,2]
[334811662,1723603840627,-904.92,0.00013698,2]
[334811663,1723603840637,-500.0,0.00013698,2]
[334811664,1723603840647,-500.0,0.00013698,2]
[334811665,1723603840659,-500.0,0.00013698,2]
[334811666,1723603840669,-500.0,0.00013698,2]
[334811667,1723603840678,-500.0,0.00013698,2]
[334811668,1723603840688,-2942.78,0.00013698,2]
[334811669,1723603840698,-500.0,0.00013698,2]
[334811670,1723603840707,-179.91105577,0.00013698,2]
[334811671,1723603840717,-500.0,0.00013698,2]
[334811672,1723603840726,-500.0,0.00013698,2]
[334811673,1723603840735,-500.0,0.00013698,2]
[334811674,1723603840745,-692.81,0.00013698,2]
[334811675,1723603840754,-671.73,0.00013698,2]
[334811676,1723603840764,-500.0,0.00013698,2]
[334811677,1723603840773,-852.51,0.00013698,2]
[334811678,1723603840783,-500.0,0.00013698,2]
[334811679,1723603840792,-1883.45,0.00013698,2]
[334811680,1723603840802,-500.0,0.00013698,2]
[334811681,1723603840812,-500.0,0.00013698,2]
[334811682,1723603840823,-4358.76,0.00013698,2]
[334811683,1723603840833,-531.95,0.00013698,2]
[334811684,1723603840842,-500.0,0.00013698,2]
[334811685,1723603840852,-500.0,0.00013698,2]
[334811686,1723603840861,-457.96542884,0.00013698,2]
[334811688,1723603840871,-601.64,0.00013698,2]
[334811690,1723603840880,-500.0,0.00013698,2]
[334811692,1723603840890,-500.0,0.00013698,2]
[334811694,1723603840899,-1102.89,0.00013698,2]
[334811695,1723603840909,-500.0,0.00013698,2]
[334811697,1723603840918,-3773.36,0.00013698,2]
[334811699,1723603840928,-500.0,0.00013698,2]
[334811701,1723603840940,-1274.4,0.00013698,2]
[334811703,1723603840950,-1238.0,0.00013698,2]
[334811705,1723603840959,-500.0,0.00013698,2]
[334811706,1723603840968,-629.32772234,0.00013698,2]
[334811708,1723603840979,-521.528139,0.00013698,2]
[334811710,1723603840988,-500.0,0.00013698,2]
[334811712,1723603840997,-500.0,0.00013698,2]
[334811714,1723603841007,-3131.44,0.00013698,2]
[334811716,1723603841018,-500.0,0.00013698,2]
[334811718,1723603841027,-500.0,0.00013698,2]
[334811720,1723603841036,-2308.42,0.00013698,2]
[334811721,1723603841046,-3908.47,0.00013698,2]
[334811723,1723603841056,-500.0,0.00013698,2]
[334811725,1723603841065,-500.0,0.00013698,2]
[334811726,1723603841075,-2319.06,0.00013698,2]
[334811727,1723603841084,-500.0,0.00013698,2]
[334811728,1723603841093,-500.0,0.00013698,2]
[334811729,1723603841103,-1013.41,0.00013698,2]
[334811731,1723603841112,-501.65070018,0.00013698,2]
[334811732,1723603841121,-500.0,0.00013698,2]
[334811733,1723603841131,-500.0,0.00013698,2]
[334811734,1723603841140,-206.89469176,0.00013698,2]
[334811735,1723603841150,-4275.05,0.00013698,2]
[334811736,1723603841159,-500.0,0.00013698,2]
[334811737,1723603841169,-543.97,0.00013698,2]
[334811738,1723603841179,-500.0,0.00013698,2]
[334811739,1723603841189,-500.0,0.00013698,2]
[334811740,1723603841199,-611.41,0.00013698,2]
[334811741,1723603841208,-4269.05,0.00013698,2]
[334811742,1723603841218,-1143.12,0.00013698,2]
[334811743,1723603841228,-500.0,0.00013698,2]
[334811744,1723603841237,-1116.18,0.00013698,2]
[334811745,1723603841249,-4663.28,0.00013698,2]
[334811746,1723603841258,-312.8754219,0.00013698,2]
[334811747,1723603841267,-500.0,0.00013698,2]
[334811748,1723603841277,-1963.14,0.00013698,2]
[334811749,1723603841286,-502.56974608,0.00013698,2]
[334811750,1723603841295,-500.0,0.00013698,2]
[334811751,1723603841305,-500.0,0.00013698,2]
[334811752,1723603841314,-500.0,0.00013698,2]
[334811753,1723603841324,-500.0,0.00013698,2]
[334811754,1723603841333,-513.84,0.00013698,2]
[334811755,1723603841343,-5039.17,0.00013698,2]
[334811756,1723603841353,-500.0,0.00013698,2]
[334811757,1723603841363,-563.85,0.00013698,2]
[334811758,1723603841372,-1042.63,0.00013698,2]
[334811759,1723603841382,-513.29231681,0.00013698,2]
[334811760,1723603841392,-500.0,0.00013698,2]
[334811761,1723603841401,-500.0,0.00013698,2]
[334811762,1723603841411,-500.0,0.00013698,2]
[334811763,1723603841420,-500.0,0.00013698,2]
[334811764,1723603841430,-500.0,0.00013698,2]
[334811765,1723603841439,-500.0,0.00013698,2]
[334811766,1723603841449,-2211.11,0.00013698,2]
[334811767,1723603841458,-500.0,0.00013698,2]
[334811768,1723603841468,-500.0,0.00013698,2]
[334811769,1723603841477,-500.0,0.00013698,2]
[334811770,1723603841486,-500.0,0.00013698,2]
[334811771,1723603841496,-886.37,0.00013698,2]
[334811772,1723603841506,-500.0,0.00013698,2]
[334811773,1723603841515,-871.5,0.00013698,2]
[334811774,1723603841525,-500.0,0.00013698,2]
[334811775,1723603841534,-500.0,0.00013698,2]
[334811776,1723603841544,-500.0,0.00013698,2]
[334811777,1723603841553,-1663.19,0.00013698,2]
[334811778,1723603841562,-500.0,0.00013698,2]
[334811779,1723603841571,-502.29592566,0.00013698,2]
[334811780,1723603841581,-500.0,0.00013698,2]
[334811781,1723603841591,-500.0,0.00013698,2]
[334811782,1723603841601,-500.0,0.00013698,2]
[334811783,1723603841612,-5519.37,0.00013698,2]
[334811784,1723603841621,-500.0,0.00013698,2]
[334811785,1723603841631,-500.0,0.00013698,2]
[334811786,1723603841640,-548.95,0.00013698,2]
[334811787,1723603841650,-500.0,0.00013698,2]
[334811788,1723603841659,-500.0,0.00013698,2]
[334811789,1723603841669,-500.0,0.00013698,2]
[334811790,1723603841679,-500.0,0.00013698,2]
[334811791,1723603841688,-500.0,0.00013698,2]
[334811792,1723603841698,-500.0,0.00013698,2]
[334811793,1723603841708,-500.0,0.00013698,2]
[334811794,1723603841717,-500.0,0.00013698,2]
[334811795,1723603841727,-524.24,0.00013698,2]
[334811796,1723603841737,-500.0,0.00013698,2]
[334811797,1723603841746,-500.0,0.00013698,2]
[334811798,1723603841756,-500.0,0.00013698,2]
[334811799,1723603841767,-500.0,0.00013698,2]
[334811800,1723603841777,-1172.03,0.00013698,2]
[334811801,1723603842043,-500.0,0.00013698,2]
[334811802,1723603842052,-500.0,0.00013698,2]
[334811803,1723603842062,-500.0,0.00013698,2]
[334811804,1723603842071,-500.0,0.00013698,2]
[334811805,1723603842080,-500.0,0.00013698,2]
[334811806,1723603842090,-500.0,0.00013698,2]
[334811807,1723603842100,-500.0,0.00013698,2]
[334811808,1723603842110,-500.0,0.00013698,2]
[334811809,1723603842120,-500.0,0.00013698,2]
[334811810,1723603842130,-500.0,0.00013698,2]
[334811811,1723603842139,-500.0,0.00013698,2]
[334811812,1723603842149,-1026.14,0.00013698,2]
[334811813,1723603842158,-500.0,0.00013698,2]
[334811814,1723603842168,-2558.78,0.00013698,2]
[334811815,1723603842177,-6089.56,0.00013698,2]
[334811816,1723603842186,-500.0,0.00013698,2]
[334811817,1723603842195,-721.59,0.00013698,2]
[334811818,1723603842205,-500.0,0.00013698,2]
[334811819,1723603842214,-652.17,0.00013698,2]
[334811820,1723603842223,-500.0,0.00013698,2]
[334811821,1723603842232,-1052.72,0.00013698,2]
[334811822,1723603842242,-500.0,0.00013698,2]
[334811823,1723603842251,-500.0,0.00013698,2]
[334811824,1723603842261,-500.0,0.00013698,2]
[334811825,1723603842270,-1637.63,0.00013698,2]
[334811826,1723603842280,-2262.05,0.00013698,2]
[334811827,1723603842290,-515.71331358,0.00013698,2]
[334811828,1723603842299,-541.96,0.00013698,2]
[334811829,1723603842309,-3044.5,0.00013698,2]
[334811830,1723603842318,-500.0,0.00013698,2]
[334811831,1723603842327,-500.0,0.00013698,2]
[334811832,1723603842338,-4734.54,0.00013698,2]
[334811833,1723603842348,-6651.45,0.00013698,2]
[334811834,1723603842357,-486.38429491,0.00013698,2]
[334811835,1723603842367,-1697.19,0.00013698,2]
[334811836,1723603842376,-502.01733024,0.00013698,2]
[334811837,1723603842386,-500.0,0.00013698,2]
[334811838,1723603842395,-500.0,0.00013698,2]
[334811839,1723603842404,-611.34036233,0.00013698,2]
[334811840,1723603842414,-500.0,0.00013698,2]
[334811841,1723603842423,-2800.16,0.00013698,2]
[334811842,1723603842433,-502.35568707,0.00013698,2]
[334811843,1723603842442,-500.0,0.00013698,2]
[334811844,1723603842452,-1562.52,0.00013698,2]
[334811845,1723603842462,-1932.52,0.00013698,2]
[334811846,1723603842471,-500.0,0.00013698,2]
[334811847,1723603842480,-500.0,0.00013698,2]
[334811848,1723603842490,-500.0,0.00013698,2]
[334811849,1723603842499,-500.0,0.00013698,2]
[334811850,1723603842508,-3412.59,0.00013698,2]
[334811851,1723603842518,-500.0,0.00013698,2]
[334811852,1723603842527,-1080.99,0.00013698,2]
[334811853,1723603842536,-1904.81,0.00013698,2]
[334811854,1723603842545,-500.0,0.00013698,2]
[334811855,1723603842554,-3403.14,0.00013698,2]
[334811856,1723603842564,-500.0,0.00013698,2]
[334811857,1723603842573,-6160.63,0.00013698,2]